Cogmind - Beta 13 @@@ ROGUE MODE // 2024.02.28 @ 00:32:03 Player: Takagiro Result: Destroyed self with Light Nuclear Core chain reaction Performance ------------- Evolutions (1) 500 Regions Visited (2) 400 Robots Destroyed (15) 75 Value Destroyed (447) 447 Prototype IDs (1) 20 Alien Tech Used (0) 0 Bonus (0) 0 TOTAL SCORE: 1442 Bonus ------- None Cogmind --------- Core Integrity 0/400 Matter 44/300 Energy 227/250 System Corruption 0% Temperature Cool (31) Movement Rolling (95) Ox1 Location -9/Materials Parts ------- > --- POWER (1) -------- Ion Engine > --- PROPULSION (4) --- Wheel > --- UTILITY (2) ------ Improved Targeting Computer Power Shielding > --- WEAPON (2) ------- Heavy EM Pulse Gun Grenade Launcher > --- INVENTORY (5) ---- Improved Ion Engine Improved Heat Sink Signal Interpreter Grenade Launcher Peak State ------------ > --- POWER ------------ Ion Engine > --- PROPULSION ------- Wheel > --- UTILITY ---------- Improved Targeting Computer Power Shielding > --- WEAPON ----------- Heavy EM Pulse Gun Grenade Launcher > --- INVENTORY -------- Improved Ion Engine Improved Heat Sink Signal Interpreter Improved Assault Rifle Grenade Launcher [Rating: 9] Favorites ----------- Power Ion Engine Engine Ion Engine Power Core Light Nuclear Core Propulsion VTOL Module Treads Improved Treads Leg Aluminum Leg Wheel Wheel Flight Unit VTOL Module Utility Power Shielding Device Improved Heat Sink Storage Small Storage Unit Processor Improved Targeting Computer Protection Power Shielding Weapon Medium Laser Energy Gun Medium Laser Ballistic Gun Assault Rifle Ballistic Cannon Improved Light Cannon Launcher Grenade Launcher Build | -11 -10 -9 ------- Run | Yrd Mat Mat Slots Evolved 2 | . . 2 Power . | . . . Propulsion 2 | . . 2 Utility . | . . . Weapon . | . . . Parts Attached 25 | 4 8 13 Power 5 | 1 3 1 Engine 3 | 1 1 1 Core 2 | . 2 . Reactor . | . . . Propulsion 5 | 1 . 4 Treads 2 | . . 2 Leg 1 | 1 . . Wheel 1 | . . 1 Hover . | . . . Flight 1 | . . 1 Utility 6 | 1 4 1 Device 3 | . 3 . Storage 1 | 1 . . Processor 1 | . . 1 Hackware . | . . . Protection 1 | . 1 . Artifact . | . . . Weapon 9 | 1 1 7 Energy Gun 2 | 1 . 1 Energy Cannon . | . . . Ballistic Gun 1 | . 1 . Ballistic Cannon 2 | . . 2 Launcher 4 | . . 4 Special Weapon . | . . . Impact Weapon . | . . . Slashing Weapon . | . . . Piercing Weapon . | . . . Special Melee Weapon . | . . . Unidentified Prototypes 1 | . . 1 Parts Lost 8 | . 2 6 Power 2 | . 1 1 Propulsion 1 | . . 1 Utility . | . . . Weapon 5 | . 1 4 Highest Loss Streak 3 | . 2 3 To Critical Strikes . | . . . Average Slot Usage (%) 43 | . 40 46 Engine 8 | . 8 7 Core 3 | . 4 3 Device 4 | . 8 1 Processor 5 | . . 9 Protection 8 | . 4 11 Energy Gun 4 | . 8 1 Ballistic Gun 4 | . 5 2 Ballistic Cannon 2 | . . 4 Launcher 1 | . . 2 Naked Turns . | . . . Heaviest Build 13 | 5 9 13 Greatest Support 10 | 10 3 10 Greatest Overweight (x) 4 | 1 2 4 Average Overweight (x) 1 | . 1 2 Largest Inventory Capacity 8 | 8 5 5 Average Capacity 5 | 5 5 5 Most Carried 5 | 4 5 5 Average Carried 2 | . 2 2 Final Capacity 5 | 5 5 5 Final Carried 4 | 1 3 4 Class Distribution -------------------- 100% | Mutant Dominant Class ---------------- Mutant | -10/Materials Mutant | -9/Materials Resources | -11 -10 -9 ----------- Run | Yrd Mat Mat Matter Collected 392 | 181 113 98 Remotely . | . . . Salvage Created 376 | 50 100 226 Parts 28 | 1 5 22 Haulers Intercepted . | . . . Recyclers Shooed . | . . . Parts Field Recycled . | . . . Retrieved Matter . | . . . Parts Self-Destructed . | . . . Prevented . | . . . Kills | -11 -10 -9 ------- Run | Yrd Mat Mat Combat Hostiles Destroyed 13 | . 2 11 Guns 6 | . 2 4 Cannons 3 | . . 3 AOE 4 | . . 4 Classes Destroyed 5 | 1 1 3 Builder 1 | . . 1 Recycler 1 | 1 . . Swarmer 4 | . . 4 Grunt 5 | . 2 3 Sentry 4 | . . 4 Best Kill Streak 6 | 1 1 6 Combat Bots Only 4 | . 1 4 Max Kills in Single Turn 1 | 1 1 1 Gunslinging . | . . . Exploded 1 | . . 1 Melee . | . . . Uniques/NPCs Destroyed . | . . . Combat | -11 -10 -9 -------- Run | Yrd Mat Mat Hostile Shots Fired 102 | . 22 80 Missed 26 | . 3 23 Damage Taken 1131 | . 245 886 Core 506 | . 100 406 Absorbed by Shields . | . . . Redirected to Shielding 37 | . . 37 Core Remaining (%) 80 | 100 60 . Volleys Fired 83 | 6 34 43 Largest 1 | 1 1 1 Hottest 50 | 50 50 45 Shots Fired 83 | 6 34 43 Gun 58 | 6 34 18 Cannon 14 | . . 14 Launcher 11 | . . 11 Special . | . . . Kinetic 37 | . 8 29 Thermal 32 | 6 26 . Explosive 11 | . . 11 Electromagnetic 3 | . . 3 Robot Hit Streak 20 | 6 7 20 Robot Miss Streak 5 | . 3 5 Penetration Max . | . . . Secondary Targets . | . . . Shots Hit Robots 58 | 6 17 35 Core Hits 28 | 2 5 21 Critical Kills . | . . . Critical Parts Destroyed . | . . . Critical Strikes 1 | 1 . . Burn 1 | 1 . . Melee Attacks . | . . . Impact . | . . . Slashing . | . . . Piercing . | . . . Sneak Attacks . | . . . Combat Hostiles . | . . . Follow-up Attacks . | . . . Damage Inflicted 1175 | 75 214 886 Guns 449 | 75 214 160 Cannons 291 | . . 291 Explosions 423 | . . 423 Melee . | . . . Ramming 12 | . . 12 Kinetic 465 | . 62 403 Thermal 342 | 75 152 115 Explosive 308 | . . 308 Electromagnetic 48 | . . 48 Impact . | . . . Slashing . | . . . Piercing . | . . . Highest Corruption . | . . . Average Corruption . | . . . Corruption Purged . | . . . Corruption Blocked . | . . . Overload Shots . | . . . Overflow Damage 18 | . . 18 Projectiles 13 | . . 13 Explosions 5 | . . 5 Melee . | . . . Knockbacks . | . . . Impact . | . . . Kinetic . | . . . Secondary . | . . . Self-Inflicted Damage 207 | . . 207 Shots 5 | . . 5 Rammed 3 | . . 3 Targets Rammed 3 | . . 3 Kicked . | . . . Crushed . | . . . Highest Temperature 142 | 40 142 19 Average Temperature 35 | 19 52 5 Received Heat Transfer 384 | . 159 225 Siege Activations . | . . . Robots Corrupted . | . . . Combat Hostiles . | . . . Parts Fried . | . . . Impact Corruptions . | . . . Robots Melted . | . . . Combat Hostiles . | . . . Parts Melted 5 | 1 2 2 Heat Transferred 890 | 296 444 150 Parts Sabotaged . | . . . Parts Stolen . | . . . Parts Stripped . | . . . Power Chain Reactions 1 | . . 1 Alert | -11 -10 -9 ------- Run | Yrd Mat Mat Peak Influence 378 | 5 63 378 Initial 26 | . 3 26 Average 109 | 2 25 200 Maximum Alert Level 1 | . . 1 Low Security (%) 67 | 100 100 33 Level 1 32 | . . 66 Level 2 . | . . . Level 3 . | . . . Level 4 . | . . . Level 5 . | . . . High Security . | . . . Max Security . | . . . Squads Dispatched 1 | . . 1 Investigation . | . . . Extermination . | . . . Reinforcement 1 | . . 1 Assault . | . . . Garrison . | . . . Intercept . | . . . Searches Triggered . | . . . Construction Impeded . | . . . Haulers Reinforced . | . . . Active Scanning Responses . | . . . Cargo Convoy Interrupts . | . . . Stealth | -11 -10 -9 --------- Run | Yrd Mat Mat Distress Signals . | . . . Communications Jammed . | . . . Distress Signals . | . . . Times Spotted 20 | . 6 14 Peak Tracking Total 4 | . 3 4 Tactical Retreats 1 | . 1 . Traps | -11 -10 -9 ------- Run | Yrd Mat Mat Traps Triggered . | . . . Indirectly . | . . . Trap Hack Attempts . | . . . Triggered . | . . . Disarmed . | . . . Reprogrammed . | . . . Reused . | . . . Traps Extracted . | . . . Installed . | . . . Triggered . | . . . Machines | -11 -10 -9 ---------- Run | Yrd Mat Mat Machines Disabled 2 | . . 2 Max in Single Turn 1 | . . 1 Machines Repaired . | . . . Machines Dismantled . | . . . Machines Sabotaged . | . . . Overloaded Fab Kills . | . . . Hacking | -11 -10 -9 --------- Run | Yrd Mat Mat Machines Accessed . | . . . Terminals . | . . . Fabricators . | . . . Repair Stations . | . . . Recycling Units . | . . . Scanalyzers . | . . . Garrison Access . | . . . Total Hacks . | . . . Successful . | . . . Failed . | . . . Catastrophic . | . . . Database Lockouts . | . . . Manual . | . . . Terminals . | . . . Fabricators . | . . . Repair Stations . | . . . Recycling Units . | . . . Scanalyzers . | . . . Garrison Access . | . . . Terminal Hacks . | . . . Fabricator Hacks . | . . . Repair Station Hacks . | . . . Recycling Unit Hacks . | . . . Scanalyzer . | . . . Garrison Access Hacks . | . . . Unauthorized Hacks . | . . . Terminals . | . . . Fabricators . | . . . Repair Stations . | . . . Recycling Units . | . . . Scanalyzers . | . . . Garrison Access . | . . . Data Cores Recovered . | . . . Used . | . . . Hacking Detections . | . . . Full Trace Events . | . . . Feedback Events . | . . . Feedback Blocked . | . . . Robot Schematics Acquired . | . . . Robots Built . | . . . Authchips . | . . . Time . | . . . Total Robot Build Rating . | . . . Part Schematics Acquired . | . . . Parts Built . | . . . Authchips . | . . . Time . | . . . Total Part Build Rating . | . . . Parts Repaired . | . . . Time . | . . . Parts Recycled . | . . . Recycled Matter . | . . . Retrieved Matter . | . . . Retrieved Components . | . . . Parts Scanalyzed . | . . . Part Schematics Acquired . | . . . Parts Damaged . | . . . Bothacking | -11 -10 -9 ------------ Run | Yrd Mat Mat Used RIF Installer . | . . . Robots Hacked . | . . . Non-combat . | . . . Combat . | . . . Robot Hacks Applied . | . . . Relay Couplers Released . | . . . Fabnet Peak Effective % . | . . . Robots Rewired . | . . . Allies Hacked . | . . . Hacks Repelled . | . . . Allies | -11 -10 -9 -------- Run | Yrd Mat Mat Total Allies . | . . . Largest Group . | . . . Highest-Rated Group . | . . . Highest-Rated Ally . | . . . Total Orders . | . . . Ally Attacks . | . . . Total Damage . | . . . Kills . | . . . Allies Corrupted . | . . . Allies Melted . | . . . Intel | -11 -10 -9 ------- Run | Yrd Mat Mat Robot Analysis Total . | . . . Derelict Logs Recovered . | . . . Drone Launches . | . . . Drone Recoveries . | . . . Exploration | -11 -10 -9 ------------- Run | Yrd Mat Mat Turns Passed 778 | 91 300 387 Spaces Moved 431 | 73 184 174 Core 367 | 63 184 120 Treads . | . . . Legs 10 | 10 . . Wheels 20 | . . 20 Hover . | . . . Flight 34 | . . 34 Fastest Speed 50 | 50 50 80 Average Speed 126 | 86 115 155 Slowest Speed 250 | 120 150 250 Overloaded Moves . | . . . Propulsion Burnouts . | . . . Robots Hopped . | . . . Cave-ins Triggered . | . . . Exploration Rate (%) 20 | 5 34 21 Regions Visited 2 Branch Regions . Pre-discovered Areas . | . . . Known Exits Taken . | . . . Unknown Exits Taken 2 | 1 1 . Scrap Searched . | . . . Spaces Dug . | . . . Terrain Destroyed 68 | . . 68 Melee . | . . . Projectile . | . . . AOE 68 | . . 68 Terrain Rammed . | . . . Walls Destroyed . | . . . Machines Disabled . | . . . Actions | -11 -10 -9 --------- Run | Yrd Mat Mat Total 590 | 99 239 252 Wait 5 | . 5 . Move 429 | 72 183 174 Hop . | . . . Pick Up 26 | 9 6 11 Fast Attach . | . . . Attach 24 | 4 7 13 Detach 10 | 2 3 5 Swap 2 | . 1 1 Drop 8 | 6 . 2 Fire 83 | 6 34 43 Melee . | . . . Ram 3 | . . 3 Kick . | . . . Crush . | . . . Escape Stasis . | . . . Rewire . | . . . Trap . | . . . Miscellaneous . | . . . Route ------- -11/Scrapyard -10/Materials (discovered 2 exits: [*Mat] / [*Min]) -9/Materials History --------- Turn | Location | Event 18 | -11/Scrapyard | Discovered new exit (range 14) 92 | -11/Scrapyard | Entered Materials 232 | -10/Materials | Discovered new exit (range 15) 330 | -10/Materials | Build established: Mutant 383 | -10/Materials | Discovered new exit (range 6) 392 | -10/Materials | Entered another Materials area 392 | -9/Materials | Evolved 2 slots: Propulsion x2 549 | -9/Materials | Lost 3 parts (1p2w) 596 | -9/Materials | Core integrity fell below 50% 719 | -9/Materials | Core integrity fell below 20% 779 | -9/Materials | Destroyed self with Light Nuclear Core chain reaction Last Messages --------------- U-05 Engineer builds a Wall. U-05 Engineer lays Concrete. U-05 Engineer builds a Wall. U-05 Engineer lays Concrete. U-05 Engineer builds a Wall. U-05 Engineer lays Concrete. Slammed into U-05 Engineer. U-05 Engineer lays Concrete. Slammed into U-05 Engineer. U-05 Engineer lays Concrete. Slammed into U-05 Engineer. Acquired Signal Interpreter. Acquired Prototype Ballistic Gun. Identified Imp. Assault Rifle. Faulty integration triggers meltdown. Power Shielding damaged (-3). Ion Engine damaged (-2). Hvy. EM Pulse Gun damaged (-16). Chain reaction triggered in Lgt. Nuclear Core. G-47 Trooper destroyed. Map ----- +----------------------------------------------------+ | ?????????????????????????????????????????????????? | | ?????????????????????????????????????????????????? | | ?????????????????????????????????????????????????? | | ?????????????????????????????????????????????????? | | ?????????????????????????????????????????????????? | | ?????????????????????????????????????????????????? | | ??????????########???????????????????????????????? | | ??????????# !! #???????????????????????????????? | | ??????????# !! ##########??????????????????????? | | ########### ! # T ##?????????????????????? | | # + # #?????????????????????? | | # ######### # = ##?????????????????????? | | # ##??????# # [* [#??????????????????????? | | ##########+##+# * #??????????????????????? | | # * #??????????????????????? | | T / ! #??????????????????????? | | # #??????????????????????? | | ##########+#### [=![ #??????????????????????? | | ##???????? ??#####+# ##??????????????????????? | | #?????????"""???# ##=# #???????????????????????? | | #?????????"""???# ##[# #???????????????????????? | | #?????????"""???####+###???????????????????????? | | #????????? ???# #???#???????????????????? | | #???????????????# #;; #???????????????????? | | #???????????????#""" #% #???????????????????? | | #???????????????#""" @[g #???????????????????? | | #???????????????#""" ; #???????????????????? | | #???????????????# # #???????????????????? | | /???????????????#####+##? #???????????????????? | | #???????????????????? ?? #???????????????????? | | #???????????????????? ??? #???????????????????? | | #???????????????????? ??? +???????????????????? | | #???????????????????? ????#???????????????????? | | #???????????????????? ????????????????????????? | | #??????????????????????????????????????????????? | | #??????????????????????????????????????????????? | | #??????????????????????????????????????????????? | | #??????????????????????????????????????????????? | | #??????????????????????????????????????????????? | | #??????????????????????????????????????????????? | | #??????????????????????????????????????????????? | | #######????????????????????????????????????????? | | ???????????????????????????????????? | | ########???????????????????????????????????????? | | #??????????????????????????????????????????????? | | #??????????????????????????????????????????????? | | #??????????????????????????????????????????????? | | #??????????????????????????????????????????????? | | #??????????????????????????????????????????????? | | #??????????????????????????????????????????????? | +----------------------------------------------------+ Best States ------------- Heat Dissipation 42 Energy Generation 14 Energy Capacity 250 Matter Stores 300 Matter Capacity 300 Sight Range 16 Terrain Scan Density 10 Power Shielding 33 Evasion (%) 55 Targeting Accuracy 6 Item Schematics ----------------- None Robot Schematics ------------------ None Fabricated ------------ Nothing Alien Tech Used ----------------- None Achievements -------------- None Challenges ------------ None Game ------ Seed LightpackSigixGravjet Manual? 0 Play Time 00:13:16 Cumulative 16.3 hours Start 2024.02.28 @ 00:19:46 End 2024.02.28 @ 00:32:03 Sessions 1 Manual Loads 0 Difficulty Rogue Special Mode None Game No. 35 Rogue 22 Adventurer 13 Explorer 0 Win Type - Total 0 Types 0/0/0/0/0/0/0/0/0 Lore% 14 Gallery% 19 Achievement% 15 Wizard Run 0 Options --------- Layout 1 ASCII 0 Keyboard 0 Movement Mouse Keybinds 0 Fullscreen 2 Font 24/Smallcaps Map View 50x35 Zoom Use 0% Tactical HUD 0 Map Filters NONE Filters NONE Steam 1 RUN: a07e5868-10cd-407a-950c-ebf2d3bc535f